[Event "Mitropa Cup Open 2024"]
[Site "Apolda"]
[Date "2024.02.21"]
[Round "7.15"]
[White "Morgunov, Marc"]
[Black "Baenziger, Fabian"]
[Result "1/2-1/2"]
[ECO "C07"]
[WhiteElo "2368"]
[BlackElo "2414"]
[Annotator "TA"]
[PlyCount "79"]
[EventDate "2024.02.15"]
[EventType "team-tourn"]
[EventCountry "GER"]
[SourceTitle "playchess.com"]
[Source "ChessBase"]
[SourceQuality "1"]
[WhiteTeam "Austria"]
[BlackTeam "Switzerland"]
[WhiteTeamCountry "AUT"]
[BlackTeamCountry "SUI"]
[TimeControl "40/5400+30:1800+30"]

{[%evp 13,79,0,0,0,-8,-20,0,-12,0,-5,4,-1,37,0,37,45,63,74,90,91,102,95,106,94,105,104,106,79,116,108,119,95,130,96,98,78,103,97,91,68,64,71,81,61,64,64,79,89,89,20,11,18,14,18,24,0,0,0,0,0,0,0,0,0,0,0,0,-37]} 1. e4 {[%emt 0:00:17]} e6 {[%emt 0:00:18]} 2. d4 {[%emt 0:01:08]} d5 {[%emt 0:00:06]} 3. Nd2 {[%emt 0:00:25]} c5 {[%emt 0:00:23]} 4. Ngf3 {[%emt 0:01:27]} cxd4 {[%emt 0:00:30]} 5. Nxd4 {[%emt 0:00:16]} Nf6 {[%emt 0:00:57]} 6. e5 {[%emt 0:01:38]} Nfd7 {[%emt 0:00:55]} 7. N2f3 {[%emt 0:00:12]} Nc6 {[%emt 0:00:40]} 8. Bf4 {[%emt 0:00:11]} Be7 {[%emt 0:01:52]} 9. Qd2 {[%emt 0:01:41]} Nc5 {[%emt 0:08:41]} 10. Bd3 {[%emt 0:11:14]} Qb6 {[%emt 0:07:25]} 11. O-O {[%emt 0:06:40]} Bd7 {[%emt 0:04:14]} 12. c3 {[%emt 0:08:27]} a6 {[%emt 0:09:30]} 13. Rab1 {[%emt 0:06:55]} h6 {[%emt 0:18:30]} 14. Bc2 {[%emt 0:09:58]} Rc8 {[%emt 0:03:37]} 15. Rfe1 {[%emt 0:05:28]} g5 {[%emt 0:02:00]} 16. Be3 {[%emt 0:01:40]} Qc7 {[%emt 0:03:27]} 17. Nxc6 {[%emt 0:12:11]} Bxc6 {[%emt 0:00:14]} 18. Nd4 {[%emt 0:00:30]} Ba4 {[%emt 0:02:48]} 19. b3 {[%emt 0:04:48]} Bd7 {[%emt 0:00:28][%cal Oc5e4]} 20. f4 {[%emt 0:03:44]} g4 {[%emt 0:08:11]} 21. Rbc1 {[%emt 0:00:38]} h5 {[%emt 0:02:42]} 22. f5 {[%emt 0:01:38]} Ne4 {[%emt 0:03:22] Prevents Bg5} (22... Qxe5 $2 {loses.} 23. fxe6 Nxe6 24. b4 $18) 23. Bxe4 {[%emt 0:00:04]} dxe4 {[%emt 0:00:04]} 24. fxe6 {[%emt 0:01:34]} fxe6 {[%emt 0:00:05]} 25. Bf4 {[%emt 0:00:11]} Ba3 {[%emt 0:04:19]} 26. Rc2 {[%emt 0:00:12][%cal Og1h1] White is more active.} Bc5 {[%emt 0:00:01]} 27. Rxe4 {[%emt 0:00:33]} Bc6 {[%emt 0:00:04]} 28. Re1 {[%emt 0:03:24]} Qh7 {[%emt 0:00:50][%cal Oc6g2]} 29. Be3 {[%emt 0:02:50]} Rd8 {[%emt 0:01:21]} 30. Qc1 {[%emt 0:01:14]} Bxd4 {[%emt 0:02:09]} 31. Bxd4 {[%emt 0:00:06]} (31. cxd4 $16 {aiming for Bg5.} O-O 32. Rc4) 31... h4 $11 {[%emt 0:00:28][%cal Bh5h4,Bh4h3][%mdl 32]} 32. Rd2 {[%emt 0:07:01] Hoping for Bb6.} h3 {[%emt 0:05:40]} 33. g3 {[%emt 0:00:42]} Qf5 {[%emt 0:07:13] [#] White must now prevent ...Qf3.} 34. Bb6 {[%emt 0:05:35]} (34. Rf2 $5 Bf3 $8 35. Rd2 $11) 34... Rxd2 {[%emt 0:00:37] The position is equal.} 35. Qxd2 {[%emt 0:00:04]} Qf3 {[%emt 0:02:19] ( -> ...Qh1+)} 36. Qd8+ {[%emt 0:00:46]} Kf7 {[%emt 0:00:03][%csl Gc6,Gh3][%cal Rf3g2]} 37. Qf6+ {[%emt 0:00:39]} Qxf6 {[%emt 0:00:05]} 38. exf6 {[%emt 0:00:03]} Rh5 {[%emt 0:00:03]} 39. Bd4 {[%emt 0:00:43]} Rf5 {[%emt 0:01:08]} 40. Re5 {[%emt 0:02:39] Weighted Error Value: White=0.09 (flawless) /Black=0.07 (flawless) .  Mistake:       	White=1     	---        Inaccurate:     	White=2     	Black=3      OK:         	White=17    	Black=12     Best:        	White=1     	Black=2} 1/2-1/2

[Event "Mitropa Cup Open 2024"]
[Site "Apolda"]
[Date "2024.02.21"]
[Round "7.16"]
[White "Gallagher, Joseph G."]
[Black "Dotzer, Lukas"]
[Result "1/2-1/2"]
[ECO "B85"]
[WhiteElo "2427"]
[BlackElo "2335"]
[Annotator "TA"]
[PlyCount "76"]
[EventDate "2024.02.15"]
[EventType "team-tourn"]
[EventCountry "GER"]
[SourceTitle "playchess.com"]
[Source "ChessBase"]
[SourceQuality "1"]
[WhiteTeam "Switzerland"]
[BlackTeam "Austria"]
[WhiteTeamCountry "SUI"]
[BlackTeamCountry "AUT"]
[TimeControl "40/5400+30:1800+30"]

{[%evp 27,76,0,18,13,9,10,34,8,33,31,57,18,33,37,21,34,95,106,103,85,93,105,111,104,108,91,104,83,88,82,83,79,90,92,192,205,191,193,312,298,284,0,143,0,0,4,0,0,0,0,8]} 1. e4 {[%emt 0:00:04]} c5 {[%emt 0:00:05]} 2. Nf3 {[%emt 0:00:04]} d6 {[%emt 0:00:06]} 3. d4 {[%emt 0:03:18]} cxd4 {[%emt 0:00:09]} 4. Nxd4 {[%emt 0:00:08]} Nf6 {[%emt 0:00:07]} 5. Nc3 {[%emt 0:00:19]} a6 {[%emt 0:00:10]} 6. Be2 {[%emt 0:01:22]} e6 {[%emt 0:00:19]} 7. O-O {[%emt 0:01:00]} Be7 {[%emt 0:00:15]} 8. f4 {[%emt 0:01:02]} Qc7 {[%emt 0:00:28]} 9. Kh1 {[%emt 0:02:33]} Nc6 {[%emt 0:02:31]} 10. Be3 {[%emt 0:01:02]} O-O {[%emt 0:00:41]} 11. Qe1 {[%emt 0:02:40]} Nxd4 {[%emt 0:00:26]} 12. Bxd4 {[%emt 0:00:06]} b5 {[%emt 0:00:10]} 13. a3 {[%emt 0:00:07]} Bb7 {[%emt 0:00:22]} 14. Qg3 {[%emt 0:00:10]} Rad8 {[%emt 0:01:03]} 15. Bf3 {[%emt 0:07:40]} Ne8 {[%emt 0:10:11]} 16. Qf2 {[%emt 0:08:06]} Rc8 {[%emt 0:05:21]} 17. Rae1 {[%emt 0:09:59] White is slightly better.} Bf6 {[%emt 0:09:34]} 18. e5 {[%emt 0:02:02]} dxe5 {[%emt 0:01:43]} 19. fxe5 {[%emt 0:00:07]} Be7 {[%emt 0:02:56]} 20. Bxb7 {[%emt 0:01:31]} Qxb7 {[%emt 0:02:27]} 21. Ne4 {[%emt 0:00:05]} Qc6 {[%emt 0:05:12]} ({Black should play} 21... f5 $14 22. exf6 Nxf6 23. Bxf6 gxf6) 22. c3 $16 {[%emt 0:00:43]} f5 {[%emt 0:07:30]} 23. exf6 {[%emt 0:07:27]} Nxf6 {[%emt 0:02:34][%cal Be8f6,Bf6e4,Be4d2][%mdl 32]} 24. Qh4 {[%emt 0:16:26]} e5 {[%emt 0:29:26]} 25. Bxe5 {[%emt 0:01:34] White is more active.} Nxe4 {[%emt 0:02:32]} 26. Qxe7 {[%emt 0:00:26]} Qg6 {[%emt 0:01:43]} 27. Bd4 $36 {[%emt 0:04:21][%mdl 2048] [#] Inhibits Rf2. Rxf8+ is the strong threat. White has strong initiative.} (27. Qd7 {simplifies} Rfd8 28. Qxg7+ Qxg7 29. Bxg7 Nd2 30. Bf6) 27... Rxf1+ {[%emt 0:04:06]} 28. Rxf1 {[%emt 0:00:03] Black must now prevent Qd7.} Re8 {[%emt 0:01:25]} 29. Qd7 {[%emt 0:02:54][%cal Od4g7] Threatens to win with Bxg7!} Nd2 {[%emt 0:06:45]} 30. Rd1 {[%emt 0:02:52]} Re2 {[%emt 0:02:31]} (30... Nc4 $16) 31. Qd5+ $18 {[%emt 0:00:57]} Qf7 {[%emt 0:01:59]} 32. Qa8+ {[%emt 0:00:44]} Qf8 {[%emt 0:01:00]} (32... Re8 $142 33. Qxa6 Qd7) 33. Qxa6 {[%emt 0:00:27]} Rxg2 {[%emt 0:00:34]} 34. Qc6 $2 {[%emt 0:08:32] [#]} (34. Qe6+ $18 Kh8 35. Qd5 (35. Kxg2 Qf3+ 36. Kg1 Qxd1+ 37. Kf2 Qf1+ 38. Kg3 Qf3+ 39. Kh4 Qf4+ 40. Kh3 Qf3+ 41. Kh4 Qf4+ 42. Kh3 Qf3+ 43. Kh4 $11)) 34... Re2 {[%emt 0:00:33]} (34... Rxh2+ $1 $11 35. Kxh2 Qf4+ 36. Kh1 Qh4+ 37. Kg2 Qg4+ 38. Kf2 Ne4+ 39. Ke3 (39. Ke1 Qg3+ 40. Ke2 Qg2+ 41. Ke3 Qg3+ 42. Ke2 Qg4+ 43. Ke1 Qg3+ 44. Ke2 $11) 39... Qg3+ 40. Ke2 Qg2+ 41. Ke3 Qg3+ 42. Ke2 Qg4+ (42... Qg2+ 43. Ke3 $11) 43. Kd3 Qxd1+ 44. Ke3 Qe1+ (44... Qd2+ 45. Kf3 $11) 45. Kf4 Qg3+ 46. Kf5 Qf3+ 47. Ke5 Qh5+ 48. Ke6 Qf7+ 49. Ke5 Qh5+ 50. Ke6 Qf7+ 51. Ke5 Qh5+) 35. Qd5+ {[%emt 0:03:06]} (35. Qxb5 $2 Qf3+ 36. Kg1 Qg2#) (35. Rg1 $1 $16 {White threatens Qd5+ and mate.} Qf3+ 36. Qxf3 Nxf3 37. Rxg7+ Kf8 38. Rxh7 (38. Rg2 Re1+ 39. Bg1 Kf7 $14)) 35... Qf7 $11 {[%emt 0:00:28] The position is equal.} 36. Qa8+ {[%emt 0:05:56]} (36. Qxb5 $2 {leads to mate.} Qf3+ 37. Kg1 Qg2#) 36... Qf8 {[%emt 0:00:26]} 37. Qd5+ {[%emt 0:01:57]} Qf7 {[%emt 0:00:07]} 38. Qa8+ {[%emt 0:00:04]} (38. Qxb5 $2 {is a self mate.} Qf3+ 39. Kg1 Qg2#) 38... Qf8 {[%emt 0:00:08] Weighted Error Value: White=0.20 (precise) /Black=0.24 (precise) .  Missed win:     	White=1     	---        Mistake:       	White=1     	Black=4      Inaccurate:     	White=2     	Black=1      OK:         	White=11    	Black=11     Best:        	White=3     	Black=3} 1/2-1/2

[Event "Mitropa Cup Open 2024"]
[Site "Apolda"]
[Date "2024.02.21"]
[Round "7.17"]
[White "Bluebaum, Matthias"]
[Black "Krstulovic, Alex"]
[Result "1/2-1/2"]
[ECO "A11"]
[WhiteElo "2655"]
[BlackElo "2414"]
[Annotator "TA"]
[PlyCount "86"]
[EventDate "2024.02.15"]
[EventType "team-tourn"]
[EventCountry "GER"]
[SourceTitle "playchess.com"]
[Source "ChessBase"]
[SourceQuality "1"]
[WhiteTeam "Germany"]
[BlackTeam "Hungary"]
[WhiteTeamCountry "GER"]
[BlackTeamCountry "HUN"]
[TimeControl "40/5400+30:1800+30"]

{[%evp 9,86,28,36,32,23,25,14,26,8,18,20,26,34,-31,-33,-34,-39,-32,-33,-47,-31,-26,-35,-34,-32,-51,-37,-31,-28,-75,-86,-93,-110,-112,-110,-96,-91,-181,-191,-187,-181,-231,-228,-220,-218,-214,-65,-58,-50,-52,-52,-52,-52,-52,-52,-52,-52,-52,-52,-52,-52,-52,-52,-52,-52,-52,-52,-52,-47,-47,-20,-20,-20,-12,-12,-12,-7,-8,0]} 1. Nf3 {[%emt 0:00:04]} d5 {[%emt 0:00:33]} 2. e3 {[%emt 0:00:14]} Nf6 {[%emt 0:02:23]} 3. c4 {[%emt 0:00:12]} c6 {[%emt 0:00:17]} 4. Nc3 {[%emt 0:00:29]} Bf5 {[%emt 0:03:13]} 5. cxd5 {[%emt 0:03:24]} cxd5 {[%emt 0:00:27]} 6. Qb3 {[%emt 0:00:04]} Bc8 {[%emt 0:00:48]} 7. Bb5+ {[%emt 0:06:27]} Nc6 {[%emt 0:02:08] [#]} 8. e4 $1 {[%emt 0:06:39]} e6 {[%emt 0:06:12]} 9. d3 {[%emt 0:00:21]} Be7 {[%emt 0:02:50]} 10. O-O {[%emt 0:00:32]} O-O {[%emt 0:01:30]} 11. Bf4 {[%emt 0:02:06]} (11. e5 $14 Nd7 12. d4) 11... Na5 $15 {[%emt 0:04:18]} 12. Qd1 {[%emt 0:04:06]} a6 {[%emt 0:01:27]} 13. Ba4 {[%emt 0:00:05]} b5 {[%emt 0:01:34]} 14. Bc2 {[%emt 0:00:09]} dxe4 {[%emt 0:01:05]} 15. dxe4 {[%emt 0:00:56]} Qxd1 {[%emt 0:00:16]} 16. Rfxd1 {[%emt 0:04:06]} Bb7 {[%emt 0:00:38]} 17. Ne5 {[%emt 0:19:25]} Rfd8 {[%emt 0:20:01]} 18. a3 {[%emt 0:09:30]} Rac8 {[%emt 0:03:00]} 19. Rxd8+ {[%emt 0:02:41]} (19. Be3 $11) 19... Bxd8 $17 {[%emt 0:02:02]} ({But not} 19... Rxd8 20. Be3 $11) 20. Rb1 {[%emt 0:19:38]} Bc7 {[%emt 0:08:34]} 21. h3 {[%emt 0:00:54]} Bxe5 {[%emt 0:01:15]} 22. Bxe5 {[%emt 0:00:04] [#]} Nc4 $1 {[%emt 0:00:04]} 23. Bg3 {[%emt 0:04:17] [#]} (23. Bxf6 $17 gxf6 24. a4) 23... Nxa3 $1 $19 {[%emt 0:03:59][%mdl 512]} 24. bxa3 {[%emt 0:00:04] Black must now prevent Rb3.} Rxc3 {[%emt 0:00:07]} 25. Rd1 {[%emt 0:00:01]} (25. Bb3 {was called for.}) 25... h6 {[%emt 0:00:21]} ({Worse is} 25... Rxc2 26. Rd8+) 26. Rd8+ {[%emt 0:01:14]} Kh7 {[%emt 0:00:14]} 27. e5+ {[%emt 0:00:11]} Rxc2 {[%emt 0:00:04]} (27... Ne4 $1 $19 28. Rd2 g6 (28... Rxa3 29. f3 $17) 29. Bxe4 Bxe4) 28. exf6 $15 {[%emt 0:00:06]} gxf6 $19 {[%emt 0:15:51][%mdl 4096] Endgame. KRB-KRB} 29. Rd7 {[%emt 0:00:01][%csl LRb7,LRf7]} Bd5 {[%emt 0:00:07]} 30. Rxf7+ {[%emt 0:00:09]} Kg6 {[%emt 0:00:04]} 31. Ra7 {[%emt 0:00:16]} Rc6 {[%emt 0:00:22]} 32. Bf4 {[%emt 0:03:21]} e5 {[%emt 0:02:20]} 33. Bd2 {[%emt 0:00:22]} f5 {[%emt 0:03:37]} 34. Bb4 {[%emt 0:00:21]} f4 {[%emt 0:00:20]} 35. Rd7 {[%emt 0:00:58]} Be6 {[%emt 0:00:54]} 36. Rd6 {[%emt 0:01:41]} Rxd6 {[%emt 0:01:40]} 37. Bxd6 $15 {[%emt 0:00:02] KB-KB} Kf5 {[%emt 0:00:06]} 38. Bc7 {[%emt 0:03:10]} e4 {[%emt 0:02:56]} 39. f3 {[%emt 0:04:55]} e3 {[%emt 0:04:02]} 40. Kf1 {[%emt 0:00:32] The position is equal.} Bc4+ {[%emt 0:00:06]} 41. Ke1 {[%emt 0:30:11]} Bd3 {[%emt 0:31:18]} 42. h4 {[%emt 0:02:23]} h5 {[%emt 0:01:00]} 43. Ba5 {[%emt 0:00:41]} Bc4 {[%emt 0:03:28] White happily takes the draw.   Weighted Error Value: White=0.09 (flawless) /Black=0.05 (flawless) .  Mistake:       	White=4     	Black=1      Inaccurate:     	---       	Black=1      OK:         	White=21    	Black=20     Best:        	White=4     	Black=3      Strong:       	---       	Black=1      Brilliant:      	---       	Black=1} 1/2-1/2

[Event "Mitropa Cup Open 2024"]
[Site "Apolda"]
[Date "2024.02.21"]
[Round "7.18"]
[White "Vanczak, Tamas"]
[Black "Svane, Rasmus"]
[Result "1/2-1/2"]
[ECO "C10"]
[WhiteElo "2431"]
[BlackElo "2637"]
[Annotator "TA"]
[PlyCount "108"]
[EventDate "2024.02.15"]
[EventType "team-tourn"]
[EventCountry "GER"]
[SourceTitle "playchess.com"]
[Source "ChessBase"]
[SourceQuality "1"]
[WhiteTeam "Hungary"]
[BlackTeam "Germany"]
[WhiteTeamCountry "HUN"]
[BlackTeamCountry "GER"]
[TimeControl "40/5400+30:1800+30"]

{[%evp 32,108,28,8,8,0,0,-15,13,13,35,14,14,14,14,12,4,7,10,0,6,0,0,-9,-3,-11,-6,-6,-6,-13,-8,-21,-4,-3,0,0,0,0,0,0,0,0,0,-28,-23,-46,-46,-42,173,177,171,190,254,169,183,181,318,150,147,146,143,23,119,0,0,0,14,0,0,0,14,14,14,0,12,2,9,0,15]} 1. e4 {[%emt 0:00:07]} e6 {[%emt 0:00:09]} 2. d4 {[%emt 0:00:12]} d5 {[%emt 0:00:11]} 3. Nc3 {[%emt 0:00:07]} Nf6 {[%emt 0:00:31]} 4. Bg5 {[%emt 0:00:29]} dxe4 {[%emt 0:00:50]} 5. Nxe4 {[%emt 0:00:06]} Nbd7 {[%emt 0:00:10]} 6. Nxf6+ {[%emt 0:03:15]} Nxf6 {[%emt 0:01:17]} 7. Nf3 {[%emt 0:00:09]} h6 {[%emt 0:01:16]} 8. Bh4 {[%emt 0:01:48]} c5 {[%emt 0:00:27]} 9. c3 {[%emt 0:05:11] Nowadays more popular than 9.Bb5+. C10: French with 3 Nc3: Unusual Black 3rd moves and 3...dxe4.} cxd4 {[%emt 0:13:17]} 10. Nxd4 {[%emt 0:01:00]} Bd7 {[%emt 0:02:21]} 11. Bc4 {[%emt 0:11:04]} Bc5 {[%emt 0:09:24]} 12. O-O {[%emt 0:05:40]} O-O {[%emt 0:01:40]} 13. Re1 {[%emt 0:03:26]} Rc8 $146 {[%emt 0:01:55]} ({Predecessor:} 13... a6 14. Bb3 Be8 15. Re5 Rc8 16. Qd2 Bb5 17. Rd1 Bxd4 18. cxd4 Bc4 19. Bc2 Bd5 {1-0 Gromotka,H (2367)-Taffijn,M (1799) VW-Cup10 Gr38 email 2017}) 14. Bb3 {[%emt 0:00:42]} Re8 {[%emt 0:08:18]} 15. Qd3 {[%emt 0:09:32]} Bc6 {[%emt 0:12:47]} 16. Rad1 {[%emt 0:04:02]} Bxd4 {[%emt 0:01:52]} 17. cxd4 {[%emt 0:00:46]} (17. Qxd4 {simplifies} Qxd4 18. Rxd4 b5 19. Bxf6 gxf6 20. f3) 17... Bd5 {[%emt 0:09:51]} 18. Bc2 {[%emt 0:08:27]} (18. Bxd5 {simplifies} Qxd5 19. Bxf6 gxf6 20. Re4) 18... Qc7 {[%emt 0:06:07]} 19. Bb1 {[%emt 0:00:54]} Qc4 {[%emt 0:02:34]} 20. Qd2 {[%emt 0:05:11]} Nd7 {[%emt 0:02:48]} 21. Bg3 {[%emt 0:03:05]} Bc6 {[%emt 0:02:32]} 22. b3 {[%emt 0:11:22]} Qd5 {[%emt 0:01:18]} 23. f3 {[%emt 0:00:06]} Qg5 {[%emt 0:02:33]} 24. Bf4 {[%emt 0:10:40]} Qf6 {[%emt 0:00:14]} 25. Bd6 {[%emt 0:01:59]} Bd5 {[%emt 0:02:47]} 26. Qd3 {[%emt 0:01:13]} Nf8 {[%emt 0:05:10]} 27. Re5 {[%emt 0:05:43]} Rc6 {[%emt 0:01:26]} 28. Bb4 {[%emt 0:03:08]} Rec8 {[%emt 0:00:15]} 29. Bd2 {[%emt 0:01:18]} b6 {[%emt 0:03:00]} 30. Rde1 {[%emt 0:01:20]} a5 {[%emt 0:00:17]} 31. f4 {[%emt 0:00:55]} Ng6 {[%emt 0:03:13]} 32. Rh5 {[%emt 0:01:40]} Rd6 {[%emt 0:03:38]} 33. f5 {[%emt 0:00:34]} exf5 {[%emt 0:00:08]} 34. Rxf5 {[%emt 0:00:12]} Qh4 {[%emt 0:00:46]} 35. Rfe5 {[%emt 0:01:32]} Qg4 {[%emt 0:01:08]} 36. R5e2 $1 {[%emt 0:00:35]} Bc6 {[%emt 0:00:51]} 37. Rf2 {[%emt 0:00:51]} Rxd4 {[%emt 0:00:52]} 38. Qa6 {[%emt 0:00:25]} (38. Qf5 {simplifies} Qxf5 39. Bxf5 Re8 40. Rxe8+ Bxe8 41. Bxg6 fxg6 42. Be3) 38... Rcd8 {[%emt 0:00:54]} 39. Qxb6 {[%emt 0:00:41]} Ba8 $2 {[%emt 0:00:39]} (39... Rxd2 $15 40. Rxd2 Rxd2 41. Qxc6 Qd4+ 42. Kh1 Nf8) 40. Bf5 $18 {[%emt 0:00:19]} (40. Bxa5 $2 Nf4 $19) 40... Qh5 {[%emt 0:00:30]} 41. Bxa5 {[%emt 0:03:24]} (41. Qxa5 R4d5 42. Qa4 Rxf5 $15) 41... Nf8 {[%emt 0:20:04]} (41... Rd1 {might work better.}) 42. Qxd8 {[%emt 0:05:22]} Rxd8 {[%emt 0:00:22]} 43. Bxd8 {[%emt 0:00:05]} Ne6 {[%emt 0:00:17]} (43... g6 {was worth a try.}) 44. Be7 {[%emt 0:03:15]} ({Less strong is} 44. Bxe6 fxe6 45. Bc7 Qc5 $16) (44. h4 $18 {Hoping for g4.} g5 45. hxg5 (45. Bxe6 fxe6 46. hxg5 hxg5 $18) 45... hxg5 46. Bf6 (46. Bxe6 fxe6 47. Bf6 Bb7 $18)) 44... Nd4 $16 {[%emt 0:01:35]} 45. Bd3 {[%emt 0:02:47]} Bc6 {[%emt 0:02:36]} 46. Rf4 {[%emt 0:03:22]} (46. Bc4 $16 Bd5 47. Bxd5 Qxd5 48. Kh1) 46... Qd5 {[%emt 0:02:32] [#]} (46... Qa5 $11 47. b4 Qxa2) 47. Be4 {[%emt 0:00:29]} ({White has to play} 47. Bf1 $1 $16) 47... Qa5 $1 $11 {[%emt 0:00:46]} ({Don't blunder} 47... Qe5 $2 48. Bh7+ Kxh7 49. Rxe5 $18) 48. b4 $1 {[%emt 0:04:28]} Qxa2 {[%emt 0:00:51]} ({Avoid the trap} 48... Qe5 $2 49. Bh7+ Kxh7 50. Rxe5 $18) 49. Bxc6 {[%emt 0:02:09]} Nxc6 {[%emt 0:00:08]} 50. Bc5 {[%emt 0:00:19]} Qd5 {[%emt 0:01:13]} 51. Ref1 {[%emt 0:02:34]} f6 {[%emt 0:00:21]} 52. h3 {[%emt 0:00:36]} Ne5 {[%emt 0:00:32]} 53. Rd4 {[%emt 0:01:02]} Qb3 {[%emt 0:00:09]} 54. Rfd1 {[%emt 0:01:24]} Kh7 {[%emt 0:01:30]} 1/2-1/2

[Event "Mitropa Cup Open 2024"]
[Site "Apolda"]
[Date "2024.02.21"]
[Round "7.19"]
[White "Kollars, Dmitrij"]
[Black "Pasztor, Balazs"]
[Result "1-0"]
[ECO "C28"]
[WhiteElo "2632"]
[BlackElo "2395"]
[Annotator "TA"]
[PlyCount "128"]
[EventDate "2024.02.15"]
[EventType "team-tourn"]
[EventCountry "GER"]
[SourceTitle "playchess.com"]
[Source "ChessBase"]
[SourceQuality "1"]
[WhiteTeam "Germany"]
[BlackTeam "Hungary"]
[WhiteTeamCountry "GER"]
[BlackTeamCountry "HUN"]
[TimeControl "40/5400+30:1800+30"]

{[%evp 44,128,29,27,21,17,56,40,51,50,38,0,48,0,27,23,64,54,51,57,77,76,71,65,72,43,70,78,79,81,77,75,74,70,123,120,122,120,155,146,149,154,268,263,352,357,362,346,342,334,329,319,303,302,352,316,710,572,1001,549,638,644,572,490,503,484,418,418,1941,1559,10048,3617,12837,12831,12837,12837,12835,12839,12836,12832,12838,12837,12834,12311,5719,6026,1146]} 1. e4 {[%emt 0:00:17]} e5 {[%emt 0:00:06]} 2. Bc4 {[%emt 0:00:26]} Nc6 {[%emt 0:01:03]} 3. Nc3 {[%emt 0:00:56]} Nf6 {[%emt 0:00:22]} 4. d3 {[%emt 0:00:18]} Na5 {[%emt 0:00:43]} 5. Bb3 {[%emt 0:00:21]} Bb4 {[%emt 0:01:49]} 6. Nf3 {[%emt 0:00:39] C28: Vienna Game: 2...Nf6 3 Bc4 Nc6.} Nxb3 {[%emt 0:08:11]} 7. axb3 {[%emt 1:31:03]} d5 {[%emt 0:04:09]} 8. O-O {[%emt 0:00:00]} dxe4 {[%emt 0:06:16]} 9. Nxe5 $146 {[%emt 0:01:00]} ({Predecessor:} 9. Nxe4 Nxe4 10. dxe4 Qxd1 11. Rxd1 f6 12. Be3 a6 13. Ne1 Be7 14. f3 Be6 15. Nd3 {0-1 Cheb Terrab,A (2027)-Sarquis,M (2214) ARG-ch sf 93rd 2018 (7)}) 9... exd3 {[%emt 0:05:12]} 10. Nxd3 {[%emt 0:00:00]} Be7 {[%emt 0:01:51]} 11. Qf3 {[%emt 0:00:00]} O-O {[%emt 0:04:26]} 12. Re1 {[%emt 0:00:00]} c6 {[%emt 0:05:48]} 13. h3 {[%emt 0:00:00]} Be6 {[%emt 0:07:08]} 14. Be3 {[%emt 0:00:00]} Bxb3 {[%emt 0:09:03]} 15. Nc5 {[%emt 0:00:00]} Bd5 {[%emt 0:07:17]} 16. Nxd5 {[%emt 0:00:00]} cxd5 {[%emt 0:01:24]} 17. Nd3 {[%emt 0:00:00]} b6 {[%emt 0:09:24]} 18. Bxb6 {[%emt 0:00:00]} axb6 {[%emt 0:03:16]} 19. Rxa8 {[%emt 0:00:00]} Qxa8 {[%emt 0:00:07]} 20. Rxe7 {[%emt 0:00:00]} Qa4 {[%emt 0:01:43]} 21. Re2 {[%emt 0:00:00]} Rc8 {[%emt 0:00:55]} 22. b3 {[%emt 0:00:00]} Qa1+ {[%emt 0:01:14]} 23. Kh2 {[%emt 0:00:00]} h6 {[%emt 0:00:43]} 24. Qf5 {[%emt 0:00:00]} Rc6 {[%emt 0:03:28]} 25. Nb4 {[%emt 0:00:00]} Rc5 {[%emt 0:01:48]} 26. Qf4 {[%emt 0:00:00]} Rc8 {[%emt 0:07:03]} 27. Qf5 {[%emt 0:00:00]} Rc5 {[%emt 0:01:30]} 28. Nd3 {[%emt 0:00:00]} Rc6 {[%emt 0:00:10]} 29. Qf4 {[%emt 0:00:00]} Qd1 {[%emt 0:03:03]} 30. Rd2 {[%emt 0:00:00]} Qh5 {[%emt 0:03:10]} 31. f3 {[%emt 0:00:00]} (31. Nb4 {is more complex.} Re6 32. f3 Re1 33. Rf2) 31... Qg5 {[%emt 0:02:42]} 32. Qxg5 {[%emt 0:00:00]} hxg5 {[%emt 0:00:01]} 33. Nb4 {[%emt 0:00:00]} Rc5 {[%emt 0:00:57]} 34. Kg1 {[%emt 0:00:00]} Kf8 {[%emt 0:00:18]} 35. Re2 $1 {[%emt 0:00:00]} d4 {[%emt 0:01:04]} 36. Rd2 {[%emt 0:07:59]} Nd5 {[%emt 0:00:16]} 37. Nxd5 {[%emt 0:01:54]} Rxd5 {[%emt 0:00:06]} 38. c4 {[%emt 0:00:04]} Rd6 {[%emt 0:01:01]} ({Black should try} 38... Re5 $14) 39. Kf2 $16 {[%emt 0:00:00]} Ke7 {[%emt 0:00:38]} 40. Ke2 {[%emt 0:01:55]} b5 {[%emt 0:00:30]} 41. Kd3 {[%emt 0:10:49]} bxc4+ {[%emt 0:08:19]} 42. Kxc4 {[%emt 0:00:55]} Ke6 {[%emt 0:02:15] [#]} (42... Rc6+ $16 {was called for.} 43. Kxd4 Kd6) 43. b4 $1 $18 {[%emt 0:03:08]} (43. Rxd4 Rc6+ 44. Kb5 Rc8 $18) 43... f5 {[%emt 0:05:03]} 44. b5 {[%emt 0:06:59]} (44. Rxd4 Rc6+ 45. Kb3 Rb6 $18) 44... Ke5 {[%emt 0:01:36]} 45. Re2+ {[%emt 0:01:26]} Kf4 {[%emt 0:01:03] [#]} 46. Kd3 $1 {[%emt 0:00:08]} Rb6 {[%emt 0:05:22]} 47. Rb2 {[%emt 0:00:29]} (47. Kxd4 Rxb5 48. Rc2 Ra5 $15) 47... Ke5 {[%emt 0:00:37]} 48. Kc4 {[%emt 0:00:39]} g4 {[%emt 0:04:37]} 49. Re2+ {[%emt 0:01:25]} (49. fxg4 fxg4 50. hxg4 d3 $18) 49... Kf4 $2 {[%emt 0:01:07]} (49... Kd6 50. fxg4 (50. Kxd4 gxh3 51. gxh3 Rxb5 $11) (50. hxg4 fxg4 51. fxg4 Kc7 $18) 50... fxg4) 50. hxg4 $18 {[%emt 0:01:01]} (50. Kxd4 $2 gxh3 (50... gxf3 51. Rf2 $11) (50... Rxb5 51. hxg4 fxg4 52. Re4+ Kf5 53. Ke3 $11) 51. gxh3 Rxb5 $19) 50... Rd6 {[%emt 0:02:15]} 51. Kd3 {[%emt 0:00:05]} (51. gxf5 $2 d3 52. Rd2 Ke3 $19) 51... Rb6 {[%emt 0:01:17]} 52. Rb2 {[%emt 0:01:51]} ({Weaker is} 52. Kxd4 Rxb5 53. gxf5 Rb4+ 54. Kc3 Rb7 $14) 52... fxg4 {[%emt 0:00:13]} 53. fxg4 {[%emt 0:00:05]} ({Less strong is} 53. Kxd4 gxf3 54. Kc5 Rb8 $11) 53... Ke5 {[%emt 0:00:56]} 54. Rb4 {[%emt 0:02:45]} Kd5 {[%emt 0:01:00]} 55. Rxd4+ {[%emt 0:01:01]} Kc5 {[%emt 0:00:07]} (55... Ke5 $142 56. Rb4 Kd5) 56. Ke4 $18 {[%emt 0:00:28]} ({Inferior is} 56. Rd7 Rg6 $11) 56... Kxb5 {[%emt 0:01:27]} 57. Rd7 {[%emt 0:02:25]} (57. Ke5 $142 Rg6 58. Kf5 Rf6+ 59. Kg5) 57... Kc6 {[%emt 0:01:16]} 58. Rxg7 {[%emt 0:00:05]} Rb5 {[%emt 0:00:11]} 59. Re7 {[%emt 0:00:30]} Kd6 {[%emt 0:00:39]} 60. Re8 {[%emt 0:00:05]} Kd7 {[%emt 0:00:32]} 61. Re5 {[%emt 0:00:15]} Rb8 {[%emt 0:00:08]} 62. g5 {[%emt 0:01:08]} Kd6 {[%emt 0:00:34]} 63. Kf4 {[%emt 0:00:41]} Rb2 {[%emt 0:00:53]} 64. Re1 {[%emt 0:00:22]} Kd5 {[%emt 0:01:08]} 1-0